fUSD/lending_fUSD_20260116
["ID","MTS","AMOUNT","RATE_DAILY","PERIOD"]
[402145966,1768553589992,-501.91363152,0.0003589,10]
[402145967,1768553590006,-1000.0,0.0003589,10]
[402145968,1768553590020,-672.3,0.0003589,10]
[402145969,1768553590035,-504.55099389,0.0003589,10]
[402145970,1768553590050,-2351.16,0.0003589,10]
[402145971,1768553590065,-679.92,0.0003589,10]
[402145972,1768553590080,-546.71434111,0.0003589,10]
[402145973,1768553590095,-642.7,0.0003589,10]
[402145974,1768553590110,-1048.19,0.0003589,10]
[402145975,1768553590123,-500.0,0.0003589,10]
[402145976,1768553590138,-513.8366502,0.0003589,10]
[402145977,1768553590152,-500.0,0.0003589,10]
[402145978,1768553590165,-2044.82,0.0003589,10]
[402145979,1768553590179,-804.46,0.0003589,10]
[402145980,1768553590194,-500.0,0.0003589,10]
[402145981,1768553590207,-735.56,0.0003589,10]
[402145982,1768553590221,-500.0,0.0003589,10]
[402145983,1768553590235,-793.57,0.0003589,10]
[402145984,1768553590250,-500.0,0.0003589,10]
[402145985,1768553590263,-2221.23,0.0003589,10]
[402145986,1768553590277,-500.0,0.0003589,10]
[402145987,1768553590292,-1159.07,0.0003589,10]
[402145988,1768553590306,-500.0,0.0003589,10]
[402145989,1768553590319,-580.85,0.0003589,10]
[402145990,1768553590334,-941.49,0.0003589,10]
[402145991,1768553590349,-599.94,0.0003589,10]
[402145992,1768553590363,-500.0,0.0003589,10]
[402145993,1768553590378,-500.0,0.0003589,10]
[402145994,1768553590391,-500.0,0.0003589,10]
[402145995,1768553590411,-677.99,0.0003589,10]
[402145996,1768553590425,-1202.41,0.0003589,10]
[402145997,1768553590437,-2033.16,0.0003589,10]
[402145998,1768553590451,-2114.42,0.0003589,10]
[402145999,1768553590464,-504.87342731,0.0003589,10]
[402146000,1768553590478,-1524.13,0.0003589,10]
[402146001,1768553590493,-500.0,0.0003589,10]
[402146002,1768553590508,-953.55,0.0003589,10]
[402146003,1768553590531,-500.0,0.0003589,10]
[402146004,1768553590544,-1013.89,0.0003589,10]
[402146005,1768553590559,-556.39,0.0003589,10]
[402146006,1768553590573,-503.57721602,0.0003589,10]
[402146007,1768553590587,-500.0,0.0003589,10]
[402146008,1768553590601,-500.0,0.0003589,10]
[402146009,1768553590614,-500.0,0.0003589,10]
[402146010,1768553591235,-500.0,0.0003589,10]
[402146011,1768553591261,-593.7,0.0003589,10]
[402146012,1768553591271,-1302.19,0.0003589,10]
[402146013,1768553591281,-500.0,0.0003589,10]
[402146014,1768553591291,-859.25,0.0003589,10]
[402146015,1768553591300,-500.0,0.0003589,10]
[402146016,1768553591309,-623.79,0.0003589,10]
[402146017,1768553591319,-1282.3,0.0003589,10]
[402146018,1768553591329,-500.0,0.0003589,10]
[402146019,1768553591339,-500.0,0.0003589,10]
[402146020,1768553591348,-500.0,0.0003589,10]
[402146021,1768553591357,-1084.77,0.0003589,10]
[402146022,1768553591367,-500.0,0.0003589,10]
[402146023,1768553591376,-606.36,0.0003589,10]
[402146024,1768553591386,-500.0,0.0003589,10]
[402146025,1768553591395,-500.0,0.0003589,10]
[402146026,1768553591405,-647.21,0.0003589,10]
[402146027,1768553591414,-503.12699503,0.0003589,10]
[402146028,1768553591423,-500.0,0.0003589,10]
[402146029,1768553591432,-781.44,0.0003589,10]
[402146030,1768553591442,-616.11,0.0003589,10]
[402146031,1768553591451,-500.09548708,0.0003589,10]
[402146032,1768553591461,-731.99,0.0003589,10]
[402146033,1768553591470,-500.0,0.0003589,10]
[402146034,1768553591479,-907.52,0.0003589,10]
[402146035,1768553591489,-425.04505631,0.0003589,10]
[402146036,1768553591498,-503.78489875,0.0003589,10]
[402146037,1768553591508,-849.36,0.0003589,10]
[402146038,1768553591517,-500.0,0.0003589,10]
[402146039,1768553591529,-500.0,0.0003589,10]
[402146040,1768553591539,-643.32,0.0003589,10]
[402146041,1768553591549,-1477.23,0.0003589,10]
[402146042,1768553591559,-500.0,0.0003589,10]
[402146043,1768553591569,-823.29,0.0003589,10]
[402146044,1768553591579,-802.79,0.0003589,10]
[402146045,1768553591588,-348.8291905,0.0003589,10]
[402146046,1768553591598,-713.0,0.0003589,10]
[402146047,1768553591607,-725.02,0.0003589,10]
[402146048,1768553591616,-1029.59,0.0003589,10]
[402146049,1768553591626,-508.1016636,0.0003589,10]
[402146050,1768553591636,-2502.55,0.0003589,10]
[402146051,1768553591646,-500.0,0.0003589,10]
[402146052,1768553591655,-1013.39,0.0003589,10]
[402146053,1768553591665,-761.36,0.0003589,10]
[402146054,1768553591675,-1172.78,0.0003589,10]
[402146055,1768553591685,-500.0,0.0003589,10]
[402146056,1768553591694,-500.0,0.0003589,10]
[402146057,1768553591703,-295.95730883,0.0003589,10]
[402146058,1768553591712,-500.0,0.0003589,10]
[402146059,1768553591722,-764.71,0.0003589,10]
[402146060,1768553591732,-704.6,0.0003589,10]
[402146061,1768553591742,-500.0,0.0003589,10]
[402146062,1768553591751,-4884.35,0.0003589,10]
[402146063,1768553591760,-629.83,0.0003589,10]
[402146064,1768553591770,-1262.69,0.0003589,10]
[402146065,1768553591779,-500.0,0.0003589,10]
[402146066,1768553591787,-500.0,0.0003589,10]
[402146067,1768553591796,-1064.4,0.0003589,10]
[402146068,1768553591805,-564.83,0.0003589,10]
[402146069,1768553591814,-1260.28,0.0003589,10]
[402146070,1768553591825,-662.32,0.0003589,10]
[402146071,1768553591836,-1785.36,0.0003589,10]
[402146072,1768553591845,-1338.09,0.0003589,10]
[402146073,1768553591855,-500.0,0.0003589,10]
[402146074,1768553591865,-750.48,0.0003589,10]
[402146075,1768553591875,-500.0,0.0003589,10]
[402146076,1768553591884,-156.19970374,0.0003589,10]
[402146077,1768553591895,-897.64,0.0003589,10]
[402146078,1768553591903,-500.0,0.0003589,10]
[402146079,1768553591913,-500.0,0.0003589,10]
[402146080,1768553591923,-500.0,0.0003589,10]
[402146081,1768553591932,-591.5,0.0003589,10]
[402146082,1768553591942,-500.0,0.0003589,10]
[402146083,1768553591952,-1018.43,0.0003589,10]
[402146084,1768553591962,-764.04,0.0003589,10]
[402146085,1768553591971,-747.98,0.0003589,10]
[402146086,1768553591980,-500.0,0.0003589,10]
[402146087,1768553591990,-500.0,0.0003589,10]
[402146088,1768553591999,-500.0,0.0003589,10]
[402146089,1768553592009,-500.0,0.0003589,10]
[402146090,1768553592019,-500.0,0.0003589,10]
[402146091,1768553592029,-500.0,0.0003589,10]
[402146092,1768553592038,-507.12136837,0.0003589,10]
[402146093,1768553592047,-505.41,0.0003589,10]
[402146094,1768553592057,-500.0,0.0003589,10]
[402146095,1768553592066,-500.0,0.0003589,10]
[402146096,1768553592076,-173.08487964,0.0003589,10]
[402146097,1768553592085,-500.0,0.0003589,10]
[402146098,1768553592094,-500.0,0.0003589,10]
[402146099,1768553592103,-6302.12,0.0003589,10]
[402146100,1768553592112,-1736.72,0.0003589,10]
[402146101,1768553592121,-500.0,0.0003589,10]
[402146102,1768553592131,-500.0,0.0003589,10]
[402146103,1768553592140,-500.0,0.0003589,10]
[402146104,1768553592149,-500.0,0.0003589,10]
[402146105,1768553592158,-500.0,0.0003589,10]
[402146106,1768553592168,-500.0,0.0003589,10]
[402146107,1768553592178,-500.0,0.0003589,10]
[402146108,1768553592188,-500.0,0.0003589,10]
[402146109,1768553592197,-500.0,0.0003589,10]
[402146110,1768553592207,-667.66,0.0003589,10]
[402146111,1768553592217,-500.0,0.0003589,10]
[402146112,1768553592227,-500.0,0.0003589,10]
[402146113,1768553592236,-579.41006072,0.0003589,10]
[402146114,1768553592246,-1002.58,0.0003589,10]
[402146115,1768553592255,-528.13,0.0003589,10]
[402146116,1768553592264,-500.0,0.0003589,10]
[402146117,1768553592274,-500.0,0.0003589,10]
[402146118,1768553592282,-500.0,0.0003589,10]
[402146119,1768553592292,-1041.6,0.0003589,10]
[402146120,1768553592302,-500.0,0.0003589,10]
[402146121,1768553592311,-848.85,0.0003589,10]
[402146122,1768553592321,-500.0,0.0003589,10]
[402146123,1768553592331,-500.0,0.0003589,10]
[402146124,1768553592340,-1353.3,0.0003589,10]
[402146125,1768553592350,-500.0,0.0003589,10]
[402146126,1768553592358,-1109.73,0.0003589,10]
[402146127,1768553592367,-500.0,0.0003589,10]
[402146128,1768553592377,-500.0,0.0003589,10]
[402146129,1768553592386,-500.0,0.0003589,10]
[402146130,1768553592395,-500.0,0.0003589,10]
[402146131,1768553592404,-1021.74,0.0003589,10]
[402146132,1768553592414,-623.92,0.0003589,10]
[402146133,1768553592422,-737.24,0.0003589,10]
[402146134,1768553592431,-500.0,0.0003589,10]
[402146135,1768553592440,-539.09,0.0003589,10]
[402146136,1768553592450,-935.75,0.0003589,10]
[402146137,1768553592459,-1333.16,0.0003589,10]
[402146138,1768553592469,-907.64,0.0003589,10]
[402146139,1768553592478,-535.61,0.0003589,10]
[402146140,1768553592487,-686.98,0.0003589,10]
[402146141,1768553592496,-878.33,0.0003589,10]
[402146142,1768553592505,-664.49,0.0003589,10]
[402146143,1768553592514,-500.0,0.0003589,10]
[402146144,1768553592525,-1173.84,0.0003589,10]
[402146145,1768553592537,-500.0,0.0003589,10]
[402146146,1768553592545,-500.0,0.0003589,10]
[402146147,1768553592555,-500.0,0.0003589,10]
[402146148,1768553592564,-9836.18,0.0003589,10]
[402146149,1768553592575,-500.0,0.0003589,10]
[402146150,1768553592584,-500.0,0.0003589,10]
[402146151,1768553592593,-500.0,0.0003589,10]
[402146152,1768553592606,-500.0,0.0003589,10]
[402146153,1768553592616,-500.0,0.0003589,10]
[402146154,1768553592625,-1566.32,0.0003589,10]
[402146155,1768553592635,-754.56,0.0003589,10]
[402146156,1768553592644,-915.15,0.0003589,10]
[402146157,1768553592653,-500.0,0.0003589,10]
[402146158,1768553592662,-1137.0,0.0003589,10]
[402146159,1768553592672,-500.0,0.0003589,10]
[402146160,1768553592681,-600.0,0.0003589,30]
[402146161,1768553592691,-1000.0,0.0003589,5]
[402146162,1768553592700,-8228.41,0.000359,2]
[402146163,1768553592709,-2000.0,0.00035983,3]
[402146164,1768553592719,-2000.0,0.00035983,3]
[402146165,1768553592728,-59589.44512025,0.00036,5]
[402146166,1768553592737,-13662.58833108,0.00036,3]
[402146167,1768553592747,-260.0,0.00036,10]
[402146168,1768553592756,-9438.0,0.00036,2]
[402146169,1768553592766,-1000.0,0.00036,120]
[402146170,1768553592775,-200.0,0.00036,120]
[402146171,1768553592785,-1000.0,0.00036,120]
[402146172,1768553592794,-500.0,0.00036,120]
[402146173,1768553592804,-254005.74,0.00036,2]
[402146174,1768553592813,-500.0,0.00036,120]
[402146175,1768553592823,-771.50509228,0.00036019,30]
[402146176,1768553592832,-500.0,0.00036045,30]
[402146177,1768553592842,-500.0,0.00036064,30]
[402146178,1768553592851,-800.0,0.00036087,13]
[402146179,1768553592861,-800.0,0.00036087,13]
[402146180,1768553592871,-800.0,0.00036087,13]
[402146181,1768553592881,-800.0,0.00036087,13]
[402146182,1768553592890,-800.0,0.00036087,13]
[402146183,1768553592899,-800.0,0.00036087,13]
[402146184,1768553592908,-800.0,0.00036087,13]
[402146185,1768553592918,-800.0,0.00036087,13]
[402146186,1768553592927,-800.0,0.00036087,13]
[402146187,1768553592937,-800.0,0.00036087,13]
[402146188,1768553592947,-800.0,0.00036087,13]
[402146189,1768553592956,-800.0,0.00036087,13]
[402146190,1768553592966,-800.0,0.00036087,13]
[402146191,1768553592976,-800.0,0.00036087,13]
[402146192,1768553592986,-800.0,0.00036087,13]
[402146193,1768553592996,-800.0,0.00036087,13]
[402146194,1768553593006,-800.0,0.00036087,13]
[402146195,1768553593015,-800.0,0.00036087,13]
[402146196,1768553593025,-800.0,0.00036087,13]
[402146197,1768553593035,-800.0,0.00036087,13]
[402146198,1768553593044,-522.0,0.00036087,13]
[402146199,1768553593053,-257.0,0.00036087,13]
[402146200,1768553593063,-25000.0,0.00036155,10]
[402146201,1768553593072,-567.28,0.00036164,10]
[402146202,1768553593081,-151.0,0.00036164,10]
[402146203,1768553593091,-1031.15,0.00036164,10]
[402146204,1768553593100,-3291.35377223,0.00036164,10]
[402146205,1768553593109,-3291.35377223,0.00036164,10]
[402146206,1768553593118,-3291.35377223,0.00036164,10]
[402146207,1768553593127,-3291.35377223,0.00036164,10]
[402146208,1768553593136,-3291.35377223,0.00036164,10]
[402146209,1768553593145,-3291.35377223,0.00036164,10]
[402146210,1768553593154,-3291.35377223,0.00036164,10]
[402146211,1768553593163,-3291.35377223,0.00036164,10]
[402146212,1768553593172,-3291.35377223,0.00036164,10]
[402146213,1768553593181,-3291.35377223,0.00036164,10]
[402146214,1768553593191,-3291.35377223,0.00036164,10]
[402146215,1768553593200,-3291.35377223,0.00036164,10]
[402146216,1768553593209,-3291.35377223,0.00036164,10]
[402146217,1768553593218,-3291.35377222,0.00036164,10]
[402146218,1768553593227,-3291.35377222,0.00036164,10]
[402146219,1768553593237,-3291.35377222,0.00036164,10]
[402146220,1768553593246,-3291.35377222,0.00036164,10]
[402146221,1768553593255,-3291.35377222,0.00036164,10]
[402146222,1768553593264,-3291.35377222,0.00036164,10]
[402146223,1768553593274,-3291.35377222,0.00036164,10]
[402146224,1768553593283,-25000.0,0.00036164,10]
[402146225,1768553593293,-9996.43921227,0.00036164,10]
[402146226,1768553593303,-25000.0,0.00036164,10]
[402146227,1768553593313,-199.543983,0.00036164,10]
[402146228,1768553593322,-233.44798845,0.00036164,10]
[402146229,1768553593331,-163.978129,0.00036164,10]
[402146230,1768553593340,-500.0,0.00036164,10]
[402146231,1768553593349,-504.09591111,0.00036164,10]
[402146232,1768553593358,-500.0,0.00036164,10]
[402146233,1768553593368,-500.0,0.00036164,10]
[402146234,1768553593378,-808.21,0.00036164,10]
[402146235,1768553593388,-500.0,0.00036164,7]
[402146236,1768553593397,-501.81353347,0.00036164,10]
[402146237,1768553593407,-500.0,0.00036164,10]
[402146238,1768553593416,-501.52657078,0.00036164,10]
[402146239,1768553593426,-500.0,0.00036164,10]
[402146240,1768553593435,-813.73,0.00036164,10]
[402146241,1768553593444,-973.06,0.00036164,10]
[402146242,1768553593454,-504.36,0.00036164,10]
[402146243,1768553593464,-500.0,0.00036164,10]
[402146244,1768553593473,-500.0,0.00036164,10]
[402146245,1768553593482,-674.01,0.00036164,10]
[402146246,1768553593492,-500.0,0.00036164,10]
[402146247,1768553593501,-500.0,0.00036164,10]
[402146248,1768553593511,-500.0,0.00036164,10]
[402146249,1768553593521,-500.0,0.00036164,10]
[402146250,1768553593533,-1037.35,0.00036164,10]
[402146251,1768553593543,-500.0,0.00036164,10]
[402146252,1768553593552,-507.0506464,0.00036164,10]
[402146253,1768553593562,-525.62,0.00036164,10]
[402146254,1768553593571,-1211.73,0.00036164,10]
[402146255,1768553593580,-290.76442045,0.00036164,10]
[402146256,1768553593589,-500.0,0.00036164,10]
[402146257,1768553593600,-654.54,0.00036164,10]
[402146258,1768553593610,-902.4,0.00036164,10]
[402146259,1768553593620,-611.33255344,0.00036164,10]
[402146260,1768553593630,-915.0,0.00036164,10]
[402146261,1768553593640,-500.0,0.00036164,10]
[402146262,1768553593649,-548.97,0.00036164,10]
[402146263,1768553593659,-500.0,0.00036164,10]
[402146264,1768553593669,-500.0,0.00036164,10]
[402146265,1768553593678,-505.53893272,0.00036164,10]
[402146266,1768553593688,-500.0,0.00036164,10]
[402146267,1768553593698,-500.0,0.00036164,10]
[402146268,1768553593708,-786.94,0.00036164,10]
[402146269,1768553593717,-503.96975628,0.00036164,10]
[402146270,1768553593727,-503.212743,0.00036164,10]
[402146271,1768553593737,-1003.52,0.00036164,10]
[402146272,1768553593747,-500.0,0.00036164,10]
[402146273,1768553593757,-500.0,0.00036164,10]
[402146274,1768553593766,-500.0,0.00036164,10]
[402146275,1768553593776,-500.69453919,0.00036164,10]
[402146276,1768553593787,-500.0,0.00036164,10]
[402146277,1768553593797,-500.0,0.00036164,10]
[402146278,1768553593807,-553.75999839,0.00036164,10]
[402146279,1768553593816,-500.0,0.00036164,10]
[402146280,1768553593826,-500.0,0.00036164,10]
[402146281,1768553593835,-500.0,0.00036164,10]
[402146282,1768553593845,-500.0,0.00036164,10]
[402146283,1768553593855,-518.007427,0.00036164,10]
[402146284,1768553593864,-628.52016747,0.00036164,10]
[402146285,1768553593873,-500.0,0.00036164,10]
[402146286,1768553593883,-837.95,0.00036164,10]
[402146287,1768553593892,-500.0,0.00036164,10]
[402146288,1768553593901,-551.36,0.00036164,10]
[402146289,1768553593911,-548.17,0.00036164,10]
[402146290,1768553593920,-500.0,0.00036164,10]
[402146291,1768553593929,-503.76927767,0.00036164,10]
[402146292,1768553593939,-500.0,0.00036164,10]
[402146293,1768553593948,-500.0,0.00036164,10]
[402146294,1768553593957,-505.63864751,0.00036164,10]
[402146295,1768553593966,-500.0,0.00036164,10]
[402146296,1768553593976,-509.75630019,0.00036164,10]
[402146297,1768553593985,-500.0,0.00036164,10]
[402146298,1768553593994,-500.0,0.00036164,10]
[402146299,1768553594004,-1196.74,0.00036164,10]
[402146300,1768553594013,-500.0,0.00036164,10]
[402146301,1768553594022,-587.74,0.00036164,10]
[402146302,1768553594032,-500.0,0.00036164,10]
[402146303,1768553594042,-508.92469801,0.00036164,10]
[402146304,1768553594051,-500.0,0.00036164,10]
[402146305,1768553594060,-1100.8,0.00036164,10]
[402146306,1768553594070,-500.0,0.00036164,10]
[402146307,1768553594080,-1067.27,0.00036164,10]
[402146308,1768553594089,-500.0,0.00036164,10]
[402146309,1768553594099,-508.26004368,0.00036164,10]
[402146310,1768553594109,-500.0,0.00036164,10]
[402146311,1768553594119,-500.0,0.00036164,10]
[402146312,1768553594129,-505.28716417,0.00036164,10]
[402146313,1768553594138,-500.0,0.00036164,10]
[402146314,1768553594421,-826.56,0.00036164,10]
[402146315,1768553594439,-500.0,0.00036164,10]
[402146316,1768553594457,-500.0,0.00036164,10]
[402146317,1768553594466,-500.0,0.00036164,10]
[402146318,1768553594476,-875.73,0.00036164,10]
[402146319,1768553594486,-866.61,0.00036164,10]
[402146320,1768553594495,-542.86,0.00036164,10]
[402146321,1768553594505,-500.0,0.00036164,10]
[402146322,1768553594514,-511.23661577,0.00036164,10]
[402146323,1768553594525,-513.96,0.00036164,10]
[402146324,1768553594535,-500.0,0.00036164,10]
[402146325,1768553594544,-500.0,0.00036164,10]
[402146326,1768553594554,-509.93269732,0.00036164,10]
[402146327,1768553594563,-500.0,0.00036164,10]
[402146328,1768553594574,-500.0,0.00036164,10]
[402146329,1768553594583,-500.0,0.00036164,10]
[402146330,1768553594593,-853.02,0.00036164,10]
[402146331,1768553594603,-500.0,0.00036164,10]
[402146332,1768553594612,-519.50901573,0.00036164,10]
[402146333,1768553594622,-500.0,0.00036164,10]
[402146334,1768553594631,-625.29,0.00036164,10]
[402146335,1768553594640,-568.61,0.00036164,10]
[402146336,1768553594650,-504.45634584,0.00036164,10]
[402146337,1768553594659,-500.0,0.00036164,10]
[402146338,1768553594668,-500.0,0.00036164,10]
[402146339,1768553594677,-615.21491971,0.00036164,10]
[402146340,1768553594686,-500.0,0.00036164,10]
[402146341,1768553594696,-500.0,0.00036164,10]
[402146342,1768553594705,-500.0,0.00036164,10]
[402146343,1768553594714,-500.0,0.00036164,10]
[402146344,1768553594724,-500.0,0.00036164,10]
[402146345,1768553594733,-500.0,0.00036164,10]
[402146346,1768553594742,-500.0,0.00036164,10]
[402146347,1768553594751,-500.0,0.00036164,10]
[402146348,1768553594760,-500.0,0.00036164,10]
[402146349,1768553594770,-500.0,0.00036164,10]
[402146350,1768553594781,-500.0,0.00036164,10]
[402146351,1768553594791,-503.47,0.00036164,10]
[402146352,1768553594801,-278.31179941,0.00036164,10]
[402146353,1768553594810,-504.64323985,0.00036164,10]
[402146354,1768553594819,-500.0,0.00036164,10]
[402146355,1768553594828,-507.39145244,0.00036164,10]
[402146356,1768553594837,-500.0,0.00036164,10]
[402146357,1768553594846,-500.0,0.00036164,10]
[402146358,1768553594856,-500.0,0.00036164,10]
[402146359,1768553594865,-500.0,0.00036164,10]
[402146360,1768553594875,-500.0,0.00036164,10]
[402146361,1768553594885,-500.0,0.00036164,10]
[402146362,1768553594894,-500.0,0.00036164,10]
[402146363,1768553594904,-500.0,0.00036164,10]
[402146364,1768553594913,-1479.39,0.00036164,10]
[402146365,1768553594923,-668.37,0.00036164,10]
[402146366,1768553594932,-503.90181033,0.00036164,10]
[402146367,1768553594941,-500.0,0.00036164,10]
[402146368,1768553594951,-517.10024475,0.00036164,10]
[402146369,1768553594960,-520.88544731,0.00036164,10]
[402146370,1768553594970,-500.0,0.00036164,10]
[402146371,1768553594979,-500.0,0.00036164,10]
[402146372,1768553594989,-554.51,0.00036164,10]
[402146373,1768553594998,-500.0,0.00036164,10]
[402146374,1768553595009,-823.81,0.00036164,10]
[402146375,1768553595019,-500.0,0.00036164,10]
[402146376,1768553595029,-500.0,0.00036164,10]
[402146377,1768553595038,-522.66,0.00036164,10]
[402146378,1768553595048,-519.04340897,0.00036164,10]
[402146379,1768553595058,-632.8,0.00036164,10]
[402146380,1768553595067,-760.77,0.00036164,10]
[402146381,1768553595076,-368.78012828,0.00036164,10]
[402146382,1768553595086,-500.0,0.00036164,10]
[402146383,1768553595095,-500.0,0.00036164,10]
[402146384,1768553595104,-540.98,0.00036164,10]
[402146385,1768553595114,-614.54514668,0.00036164,10]
[402146386,1768553595124,-500.0,0.00036164,10]
[402146387,1768553595133,-500.0,0.00036164,10]
[402146388,1768553595142,-500.0,0.00036164,10]
[402146389,1768553595151,-500.0,0.00036164,10]
[402146390,1768553595161,-500.0,0.00036164,10]
[402146391,1768553595174,-500.0,0.00036164,10]
[402146392,1768553595184,-557.88305404,0.00036164,10]
[402146393,1768553595193,-500.0,0.00036164,10]
[402146394,1768553595203,-500.0,0.00036164,10]
[402146395,1768553595212,-500.0,0.00036164,10]
[402146396,1768553595221,-745.1,0.00036164,10]
[402146397,1768553595232,-513.95,0.00036164,10]
[402146398,1768553595241,-505.54935538,0.00036164,10]
[402146399,1768553595251,-543.44,0.00036164,10]
[402146400,1768553595261,-154.95591793,0.00036164,10]
[402146401,1768553595270,-500.0,0.00036164,10]
[402146402,1768553595279,-766.12,0.00036164,10]
[402146403,1768553595290,-503.58369032,0.00036164,10]
[402146404,1768553595302,-500.0,0.00036164,10]
[402146405,1768553595311,-500.0,0.00036164,5]
[402146406,1768553595321,-506.41824169,0.00036164,10]
[402146407,1768553595330,-500.0,0.00036164,10]
[402146408,1768553595340,-500.0,0.00036164,10]
[402146409,1768553595349,-504.4762766,0.00036164,10]
[402146410,1768553595359,-602.84,0.00036164,10]
[402146411,1768553595368,-502.71695014,0.00036164,10]
[402146412,1768553595377,-681.64,0.00036164,10]
[402146413,1768553595387,-507.967531,0.00036164,10]
[402146414,1768553595396,-946.6,0.00036164,10]
[402146415,1768553595405,-982.01,0.00036164,10]
[402146416,1768553595415,-500.0,0.00036164,10]
[402146417,1768553595425,-500.0,0.00036164,10]
[402146418,1768553595434,-500.0,0.00036164,10]
[402146419,1768553595443,-500.0,0.00036164,10]
[402146420,1768553595453,-502.62822114,0.00036164,10]
[402146421,1768553595463,-1431.59,0.00036164,10]
[402146422,1768553595472,-500.0,0.00036164,10]
[402146423,1768553595481,-500.0,0.00036164,10]
[402146424,1768553595491,-500.0,0.00036164,10]
[402146425,1768553595501,-582.81,0.00036164,10]
[402146426,1768553595510,-500.0,0.00036164,10]
[402146427,1768553595520,-1103.68,0.00036164,5]
[402146428,1768553595533,-500.0,0.00036164,10]
[402146429,1768553595543,-500.0,0.00036164,10]
[402146430,1768553595552,-500.0,0.00036164,10]
[402146431,1768553595562,-500.0,0.00036164,10]
[402146432,1768553595573,-500.0,0.00036164,10]
[402146433,1768553595583,-500.0,0.00036164,10]
[402146434,1768553595592,-500.0,0.00036164,10]
[402146435,1768553595604,-703.99,0.00036164,10]
[402146436,1768553595614,-872.15,0.00036164,10]
[402146437,1768553595624,-548.64,0.00036164,10]
[402146438,1768553595634,-850.54,0.00036164,10]
[402146439,1768553595643,-500.0,0.00036164,10]
[402146440,1768553595652,-1034.71,0.00036164,10]
[402146441,1768553595662,-500.0,0.00036164,10]
[402146442,1768553595671,-500.0,0.00036164,10]
[402146443,1768553595680,-500.0,0.00036164,10]
[402146444,1768553595690,-588.46015877,0.00036164,10]
[402146445,1768553595699,-500.0,0.00036164,10]
[402146446,1768553595709,-500.0,0.00036164,10]
[402146447,1768553595719,-712.34,0.00036164,10]
[402146448,1768553595728,-500.0,0.00036164,10]
[402146449,1768553595737,-500.0,0.00036164,10]
[402146450,1768553595747,-500.0,0.00036164,10]
[402146451,1768553595757,-1048.59,0.00036164,10]
[402146452,1768553595766,-500.0,0.00036164,10]
[402146453,1768553595775,-500.0,0.00036164,10]
[402146454,1768553595788,-500.0,0.00036164,10]
[402146455,1768553595798,-500.0,0.00036164,10]
[402146456,1768553595808,-500.0,0.00036164,10]
[402146457,1768553595817,-500.0,0.00036164,10]
[402146458,1768553595826,-797.78,0.00036164,10]
[402146459,1768553595835,-864.57,0.00036164,10]
[402146460,1768553595844,-500.0,0.00036164,10]
[402146461,1768553595854,-500.0,0.00036164,10]
[402146462,1768553595863,-500.0,0.00036164,10]
[402146463,1768553595872,-506.07491599,0.00036164,10]
[402146464,1768553595882,-500.0,0.00036164,10]
[402146465,1768553595892,-500.0,0.00036164,10]